Workbook

Sheet 2 POINT CHARGE
B1: 2024 Compensation Form - Two -Point Charge | AR1: CLERGY_DATA_BASE | AW1: CHARGE_DATA_BASE | BH1: LOOKUP TABLE | BL1: DROPDOWN | BO1: LOOKUP TABLE
AR2: 1 | AS2: =+AR2+1 -> 2 | AT2: =+AS2+1 -> 3 | AU2: =+AT2+1 -> 4 | AW2: 1 | AX2: =+AW2+1 -> 2 | AY2: 3 | AZ2: 4 | BA2: 5 | BB2: 6 | BC2: 7 | BD2: 8 | BE2: 9 | BH2: HEALTHFLEX_ELIGIBLE | BJ2: $BK$5:$BM$26 | BL2: In Name Manager: HealthFlex_Coverage | BO2: In Name Manager: HEALTHFLEX_RATES | BS2: $BL$6:$BO$9
B3: Effective Dates: | F3: From: | G3: 2024-01-01 | J3: To: | K3: 2024-12-31 | AR3: CLERGY_NAMES_SORT | AS3: CONF_RELATION_CODE | AT3: APPT_TITLE | AU3: PERCENT_SRVC | AW3: CHARGE_NAME_SORT | AX3: DISTRICT | AY3: CONFCHURCHID | AZ3: CHURCH_1_NAME | BA3: CHURCH_1_RGC | BB3: CHURCH_2_NAME | BC3: CHURCH_2_RGC | BD3: CHURCH_3_NAME | BE3: CHURCH_3_RGC | BH3: 1 | BI3: 2 | BJ3: 3 | BO3: 1 | BP3: 2 | BQ3: 3 | BR3: 4 | BU3: INPUT FOR CALCULATIONS | CJ3: Base Salary for Income Limit = | CN3: 76221
AR4: Select Pastor's Name | AW4: SELECT CHARGE'S NAME | BH4: CONF_REL_ID | BI4: CONF_RELATION | BJ4: Eligible | BL4: Pastor Only | BP4: Maximum Cost of Insurance | BQ4: Minimum Cost of Insurance | BR4: Minimum Bill to Church | BS4: Max Church Electiion Amount | BU4: MEDICAL PLANS COST PER MONTH | CB4: DENTAL PLANS COST PER MONTH | CF4: VISION PLANS COST PER MONTH | CJ4: PENSION_BENEFITS
B5: Line # | C5: Part I - General, Pastor, and Charge | P5: Info & Calculations | W5: Line # | X5: Charge Expense | AR5: Adams, Jason Elliot | AS5: FE | AT5: Senior Pastor | AU5: 1 | AW5: Alice / Mathis | AX5: Coastal Bend District | AY5: 2010 | AZ5: Alice: First | BA5: No | BB5: Mathis | BC5: No | BH5: AM | BI5: Associate Member | BJ5: Yes | BL5: Pastor Plus One | BU5: B1000 | BV5: C2000 | BW5: C3000 | BX5: H2000 | BY5: H2500 | BZ5: H5000 | CB5: HMO | CC5: Passive PPO | CD5: Dental PPO | CF5: Exam Core | CG5: Full Service | CH5: Premier | CL5: % SERVICE | CM5: Income Limit | CN5: Amount
B6: 1 | C6: Pastor Name | E6: (Select green cell, then use drop-down button to find pastor's name.) > | O6: Select Pastor's Name | W6: =+B6 -> 1 | AR6: Aguilar, Peter Michael | AS6: FE | AT6: Senior Pastor | AU6: 1 | AW6: Altair: Wesley Chapel | AX6: Crossroads District | AY6: 3000 | AZ6: Altair: Wesley Chapel | BA6: No | BH6: FD | BI6: Deacon in full connection | BJ6: Yes | BL6: Pastor Plus Family | BO6: Pastor Only | BP6: 11904 | BQ6: =IF((((MIN(BU6:BZ6))*12)<BR6),BR6,((MIN(BU6:BZ6))*12)) -> 11904 | BR6: 11904 | BS6: =BP6-BR6 -> 0 | BU6: 1140 | BV6: 1094 | BW6: 953 | BX6: 1067 | BY6: 916 | BZ6: 860 | CB6: 16 | CC6: 48 | CD6: 39 | CF6: 0 | CG6: 8 | CH6: 14 | CJ6: CPP | CL6: 1 | CM6: =2*CN3 -> 152442 | CN6: 0.03
B7: 2 | D7: Appointment Title | O7: =VLOOKUP($O$6,$AR$5:$AU$394,3) -> 0 | W7: 2 | AR7: Alejandro, Edith | AS7: PL | AT7: Senior Pastor | AU7: 0.25 | AW7: Aransas Pass UMC | AX7: Coastal Bend District | AY7: 2020 | AZ7: Aransas Pass | BA7: No | BH7: FE | BI7: Elder in full connection | BJ7: Yes | BO7: Pastor Plus Family | BP7: =ROUND(((MAX(BU7:BZ7)+MAX(CB7:CD7)+MAX(CF7:CH7))*12),0) -> 37728 | BQ7: =(MIN(BU7:BZ7))*12 -> 26832 | BR7: 11904 | BS7: =BP7-BR7 -> 25824 | BU7: 2964 | BV7: 2845 | BW7: 2478 | BX7: 2774 | BY7: 2383 | BZ7: 2236 | CB7: 53 | CC7: 144 | CD7: 117 | CF7: 0 | CG7: 20 | CH7: 36 | CJ7: CRSP Defined Benefit | CL7: 1 | CM7: none | CN7: 6132
B8: 3 | D8: Conference Relationship | R8: =VLOOKUP($O$6,$AR$5:$AU$394,2) -> 0 | W8: 3 | AR8: Alejandro, Ezekiel | AS8: PL | AT8: Senior Pastor | AU8: 0.25 | AW8: Austin New Church | AX8: Capital District | AY8: 1075 | AZ8: Austin New Church | BA8: No | BH8: FL | BI8: Full time Local Pastor | BJ8: Yes | BO8: Pastor Plus One | BP8: =ROUND(((MAX(BU8:BZ8)+MAX(CB8:CD8)+MAX(CF8:CH8))*12),0) -> 27420 | BQ8: =(MIN(BU8:BZ8))*12 -> 19608 | BR8: 11904 | BS8: =BP8-BR8 -> 15516 | BU8: 2166 | BV8: 2079 | BW8: 1811 | BX8: 2027 | BY8: 1741 | BZ8: 1634 | CB8: 30 | CC8: 96 | CD8: 78 | CF8: 0 | CG8: 13 | CH8: 23 | CJ8: CRSP Defined Contribution | CL8: 1 | CM8: none | CN8: 0.03
B9: =+B8+1 -> 4 | D9: % Service (Full Time=100%, 3/4 time=75%, half time=50%, quarter time=25%) | R9: =VLOOKUP($O$6,$AR$5:$AU$394,4) -> 0 | W9: 4 | AR9: Allen, Robert Meredith | AS9: RE | AT9: Assoc. Pastor | AU9: 0.75 | AW9: Austin: Berkeley UMC | AX9: Capital District | AY9: 1010 | AZ9: Austin: Berkeley | BA9: No | BH9: LY | BJ9: No | BL9: DROPDOWN | BO9: Maximum cost = Highest Cost Medical + Highest Cost Dental + Highest Cost Vision | CJ9: UMPIP | CL9: < 100% | CM9: none | CN9: 0.09
B10: 5 | C10: Charge Name | E10: (Select green cell, then use drop-down button to find Name of Charge) > | O10: SELECT CHARGE'S NAME | W10: 5 | AR10: Altman, Ray Joseph | AS10: FE | AT10: Senior Pastor | AU10: 1 | AW10: Austin: Bethany | AX10: Capital District | AY10: 1020 | AZ10: Austin: Bethany | BA10: No | BH10: OA | BI10: Associate Member of other Conference | BJ10: Yes | BL10: In Name Manager: HOUSING_TYPE | BO10: Minimum Cost = Lowest Cost Medical
B11: 6 | D11: District | R11: =VLOOKUP($O$10,$AW$5:$BD$332,2) -> 0 | W11: 6 | AR11: Amerson, James Patrick | AS11: FE | AT11: Senior Pastor | AU11: 1 | AW11: Austin: Covenant UMC | AX11: Capital District | AY11: 1030 | AZ11: Austin: Covenant | BA11: No | BH11: OD | BI11: Deacon of other Conference | BJ11: Yes
B12: 7 | D12: Churches in Charge: Name | N12: =VLOOKUP($O$10,$AW$5:$BD$332,4) -> 0 | R12: =VLOOKUP($O$10,$AW$5:$BD$332,6) -> 0 | W12: 7 | AR12: Angle, Polly Morrison | AS12: OF | AT12: Senior Pastor | AU12: 1 | AW12: Austin: Decker | AX12: Capital District | AY12: 1050 | AZ12: Austin: Decker | BA12: No | BH12: OE | BI12: Elder of other conference | BJ12: Yes | BL12: Select Housing Type
B13: 8 | D13: % Service to each Church (similar to Line 4) | N13: 0 | R13: =R9-N13 -> 0 | W13: 8 | AR13: Armwood, Jasper Earl | AS13: OF | AT13: Senior Pastor | AU13: 0.25 | AW13: Austin: Emmanuel | AX13: Capital District | AY13: 1060 | AZ13: Austin: Emmanuel | BA13: Yes | BH13: OF | BI13: Full member of other denomination | BJ13: Yes | BL13: Parsonage
D14: (Used to determine share of cost to each church.) | AR14: Aziz, Barbara Kutac | AS14: FE | AT14: Senior Pastor | AU14: 1 | AW14: Austin: First UMC | AX14: Capital District | AY14: 1080 | AZ14: Austin: First | BA14: No | BH14: OR | BI14: Elder of other conference - Retired | BJ14: No | BL14: Housing Allowance
B15: 9 | D15: Church is Former Rio Grande Conference (RGC) Legacy Church > | N15: =VLOOKUP($O$10,$AW$5:$BD$332,5) -> 0 | R15: =VLOOKUP($O$10,$AW$5:$BD$332,7) -> 0 | W15: =+B15 -> 9 | AC15: CALCULATION AREA THAT WILL NOT BE PRINTED | AR15: Baird, Dawn Denise | AS15: FE | AT15: Senior Pastor | AU15: 1 | AW15: Austin: Lake Travis | AX15: Capital District | AY15: 1120 | AZ15: Austin: Lake Travis | BA15: No | BH15: PD | BI15: Probationary Deacon/Deaconess | BJ15: Yes | BL15: None
D16: (If "Yes", then some benefit expenses are paid through Legacy Funds) | AR16: Balensiefen, Lori Michelle | AS16: FD | AT16: Assoc. Pastor | AU16: 1 | AW16: Austin: Life in the City | AX16: Capital District | AY16: 1125 | AZ16: Austin: Life In The City | BA16: No | BH16: PE | BI16: Probationary Elder | BJ16: Yes
B17: Line # | C17: Part II - Pastor Salary | W17: Line # | X17: Charge Expense | AR17: Banda, Amanda | AS17: FL | AT17: Assoc. Pastor | AU17: 1 | AW17: Austin: Memorial | AX17: Capital District | AY17: 1130 | AZ17: Austin: Memorial | BA17: No | BH17: PL | BI17: Part time Local Pastor | BJ17: No
B18: 10 | C18: Base Salary Paid by Church | W18: =+B18 -> 10 | X18: 0 | AC18: Distribution of Cost of Pastor Compensation by Church | AR18: Baxter Ballou, Becky | AS18: FE | AT18: Senior Pastor | AU18: 1 | AW18: Austin: Northwest Hills | AX18: Capital District | AY18: 1140 | AZ18: Austin: Northwest Hills | BA18: No | BH18: RA | BI18: Retired Associate Member | BJ18: No | BL18: DROPDOWN
B19: =+B18+1 -> 11 | C19: Conference or District Salary Support (must be requested & approved) | R19: 0 | W19: 11 | AC19: Charge Name: | AD19: =O10 -> SELECT CHARGE'S NAME | AR19: Beadle, Tracey Bowles | AS19: FE | AT19: Senior Pastor | AU19: 1 | AW19: Austin: Oak Hill UMC | AX19: Capital District | AY19: 1150 | AZ19: Austin: Oak Hill | BA19: No | BH19: RD | BI19: Retired Deacon/Deaconess | BJ19: No | BL19: Signature Line - Lay Office of person signing
B20: 12 | C20: Total Salary to Pastor from Church(es) + Conference/Distrist Salary Support | R20: =X18+R19 -> 0 | W20: 12 | AC20: Is the percent of cost of each line item to be the same for all line items for the same church? Adjustments can be made in Line 10. If "yes" enter "YES". If "NO" enter "NO" and adjust percentages in column below. ↓ | AR20: Becker, Laura Hewett | AS20: FE | AT20: Senior Pastor | AU20: 1 | AW20: Austin: Simpson UMC | AX20: Capital District | AY20: 1170 | AZ20: Austin: Simpson | BA20: No | BH20: RE | BI20: Retired Elder | BJ20: No
B21: 13 | C21: Type of Housing Supplied by Church to Pastor | R21: None | W21: 13 | X21: =IF(X22>0,(IF($R$21="Housing Allowance"," ","< ERROR. Change Line 13 or 14."))," ") ->  | AR21: Bell, Michael Kent | AS21: FL | AT21: Senior Pastor | AU21: 1 | AW21: Austin: St. John's | AX21: Capital District | AY21: 1180 | AZ21: Austin: St. John's | BA21: No | BH21: RL | BI21: Retired Local Pastor | BJ21: No | BL21: Select Office this person holds
B22: 14 | C22: Housing Allowance supplied instead of Parsonage | W22: 14 | X22: 0 | AR22: Bell, Troy James | AS22: RE | AT22: Senior Pastor | AU22: 0.5 | AW22: Austin: St. Luke | AX22: Capital District | AY22: 1190 | AZ22: Austin: St. Luke | BA22: No | BH22: RP | BI22: Retired Probationary Member | BJ22: No | BL22: Church Council Chair
B23: 15 | C23: Pre-tax deduction from Pastor's Salary for IRS 107 Exclusion as Pastoral Housing Cost | R23: 0 | W23: 15 | AR23: Bergfield, Patricia Mayer | AS23: OE | AT23: Assoc. Pastor | AU23: 1 | AW23: Austin: St. Mark | AX23: Capital District | AY23: 1200 | AZ23: Austin: St. Mark | BA23: No | BH23: SY | BI23: Supply Pastor | BJ23: No | BL23: SPPR/PPR Chair
B24: 16 | C24: Plan Compensation For Pension Purposes | R24: =IF($R$21="Parsonage",+$R$20*1.25,(IF(R21="HOUSING ALLOWANCE",+$R$20+$X$22,R20))) -> 0 | W24: 16 | AH24: yes | AR24: Bishop, Robyn | AS24: PL | AT24: Senior Pastor | AU24: 0.5 | AW24: Austin: St. Paul's | AX24: Capital District | AY24: 1210 | AZ24: Austin: St. Paul's | BA24: No | BH24: TBS | BJ24: No | BL24: Treasurer
B25: A Full Time Clergy must elect A UMPIP Contribution of at least 1% of Plan Compensation to receive full pension Benefits | AC25: =N12 -> 0 | AG25: =R12 -> 0 | AR25: Blair, Vallilea | AS25: FE | AT25: Senior Pastor | AU25: 1 | AW25: Austin: St. Peter's UMC | AX25: Capital District | AY25: 1220 | AZ25: Austin: St. Peter's | BA25: No | BI25: Unknown | BJ25: No
B26: Line # | C26: Part III - Pastor and Dependents Health Benefits (HF = HealthFlex) | W26: Line # | X26: Charge Expense | AC26: Same Percent for Each Line Item | AD26: Different Percent for Some Line Items | AE26: Cost for this Church | AG26: Same Percent for Each Line Item | AH26: Different Percent for Some Line Items | AI26: Cost for this Church | AR26: Blanco, David E. | AS26: FE | AT26: Senior Pastor | AU26: 1 | AW26: Austin: Tarrytown UMC | AX26: Capital District | AY26: 1230 | AZ26: Austin: Tarrytown | BA26: No
B27: =+B24+1 -> 17 | C27: Full-Time Clergy is Eligible and Premium Required for HealthFlex Plan | R27: =IF((VLOOKUP($R$8,$BH$5:$BJ$26,3)="NO"),"NO",IF($R$9=1,"YES","NO")) ->  | W27: =+B27 -> 17 | AR27: Blaylock, Lisa Marie | AS27: FE | AT27: Dir. Campus Ministry | AU27: 1 | AW27: Austin: Trinity UMC | AX27: Capital District | AY27: 1240 | AZ27: Austin: Trinity | BA27: No
B28: =B27+1 -> 18 | C28: Pastor's HealthFlex Benefit Coverage Tier Selection | R28: Pastor Only | W28: =+B28 -> 18 | AR28: Boehk, Karen Sue | AS28: RE | AT28: Senior Pastor | AU28: 0.5 | AW28: Austin: University | AX28: Capital District | AY28: 1250 | AZ28: Austin: University | BA28: No
B29: =B28+1 -> 19 | C29: Church's Clergy HF Premium Credit Responsibility for Full-Time Appointment | W29: =+B29 -> 19 | X29: =IF(R27="NO","0",(VLOOKUP($R$28,HealthFlex_Rates,4))) ->  | AR29: Booth, Theresa Marie | AS29: FL | AT29: Assoc. Pastor | AU29: 1 | AW29: Austin: Wesley UMC | AX29: Capital District | AY29: 1260 | AZ29: Austin: Wesley | BA29: No
B30: =B29+1 -> 20 | C30: Optional "Church Contribution" for Dependent Coverage - Enter Amount | W30: =+B30 -> 20 | X30: 0 | Y30: =IF(($X$30)>(VLOOKUP($R$28,HealthFlex_Rates,5)),"< ERROR Lower Amount. Total exceeds Max. Cost of Coverage"," ") ->  | AC30: Percent to use ↓ | AD30: ← Enter Percent to use in Each Line | AG30: Percent to use ↓ | AH30: ← Enter Percent to use in Each Line | AR30: Boriack, Amy | AS30: FL | AT30: Senior Pastor | AU30: 1 | AW30: Austin: Westlake | AX30: Capital District | AY30: 1270 | AZ30: Austin: Westlake | BA30: No
B31: =+B30+1 -> 21 | C31: Church's Total HealthFlex Cost For This Pastor | W31: =+B31 -> 21 | X31: =SUM(X29:X30) ->  | AR31: Borrego, Daisy San Jorge | AS31: FL | AT31: Senior Pastor | AU31: 1 | AW31: Bandera UMC | AX31: Hill Country District | AY31: 5000 | AZ31: Bandera | BA31: No
B32: Line # | C32: Part IV - Pastor's Accountable Reimbursable Plan (ARP) | W32: Line # | X32: Charge Expense | Z32: Expense for each church | AC32: =IF(AH24="YES",N13/R9,0) ->  | AG32: =IF(AH24="YES",R13/R9,0) ->  | AR32: Bowdre, Kristen | AS32: LY | AT32: Deaconess | AU32: 1 | AW32: Bastrop UMC | AX32: Crossroads District | AY32: 3010 | AZ32: Bastrop | BA32: No
B33: =+B31+1 -> 22 | C33: Accountable Reimbursement Plan (ARP) Recommendation 13% of base compensation | W33: =+B33 -> 22 | X33: 0 | Z33: =AC25 -> 0 | AA33: =AG25 -> 0 | AG33: =IF(AG32<0,"ERROR"," ") ->  | AR33: Bowlin, Russell Philip | AS33: PE | AT33: Senior Pastor | AU33: 1 | AW33: Bee Creek UMC | AX33: Capital District | AY33: 1280 | AZ33: Bee Creek | BA33: No
B34: Line # | C34: Part V - Recap of Charge/Church Costs | W34: Line # | X34: Charge Expense | AR34: Boyce, Everette Elmo | AS34: RE | AT34: Senior Pastor | AU34: 0.25 | AW34: Beeville: First UMC | AX34: Coastal Bend District | AY34: 2050 | AZ34: Beeville: First | BA34: No
B35: =+B33+1 -> 23 | C35: Salary | W35: =+B35 -> 23 | X35: =+X18 -> 0 | Z35: =AE35 ->  | AA35: =AI35 ->  | AC35: =IF($AH$24="YES",$AC$32,0) ->  | AD35: 0.8 | AE35: =IF($AH$24="YES",X35*AC35,X35*AD35) ->  | AG35: =+$AG$32 ->  | AH35: =1-AD35 -> 0.2 | AI35: =IF($AH$24="YES",X35*AG35,X35*AH35) ->  | AR35: Brechin, Mark Andrew | AS35: FE | AT35: Senior Pastor | AU35: 1 | AW35: Beeville: Jones Chapel UMC | AX35: Coastal Bend District | AY35: 2060 | AZ35: Beeville: Jones Chapel | BA35: No
B36: =+B35+1 -> 24 | C36: Housing Allowance | W36: 24 | X36: =+X22 -> 0 | Z36: =AE36 ->  | AA36: =AI36 ->  | AC36: =IF($AH$24="YES",$AC$32,0) ->  | AD36: 1 | AE36: =IF($AH$24="YES",X36*AC36,X36*AD36) ->  | AG36: =+$AG$32 ->  | AH36: 0 | AI36: =IF($AH$24="YES",X36*AG36,X36*AH36) ->  | AR36: Brewer, Timothy Carl | AS36: RE | AT36: Senior Pastor | AU36: 1 | AW36: Bertram | AX36: Capital District | AY36: 1300 | AZ36: Bertram | BA36: No
B37: =+B36+1 -> 25 | C37: Accountable Reimbursement Plan (ARP) | W37: 25 | X37: =+$X$33 -> 0 | Z37: =AE37 ->  | AA37: =AI37 ->  | AC37: =IF($AH$24="YES",$AC$32,0) ->  | AD37: 0.75 | AE37: =IF($AH$24="YES",X37*AC37,X37*AD37) ->  | AH37: =1-AD37 -> 0.25 | AI37: =IF($AH$24="YES",X37*AG37,X37*AH37) ->  | AR37: Brewster, Laura Eileen | AS37: FE | AT37: District Superintendent | AU37: 1 | AW37: Bishop | AX37: Coastal Bend District | AY37: 2080 | AZ37: Bishop: First | BA37: No
B38: =+B37+1 -> 26 | O38: Paid by RGC Legacy Funds | W38: 26 | AR38: Brooks, Lori Browder | AS38: PL | AT38: Senior Pastor | AU38: 0.75 | AW38: Bloomington | AX38: Crossroads District | AY38: 3035 | AZ38: Bloomington: First UMC | BA38: No
B39: =+B38+1 -> 27 | O39: =N12 -> 0 | R39: =R12 -> 0 | W39: 27 | AR39: Broome, Cheryl Ann | AS39: FE | AT39: Senior Pastor | AU39: 1 | AW39: Boerne: First | AX39: Hill Country District | AY39: 5020 | AZ39: Boerne | BA39: No
B40: 28 | C40: Heallth Benefit Expense | O40: =IF($R$27="NO",0,(IF($N$15="Yes",($BR$6*$N$13),0))) ->  | R40: =IF($R$27="NO",0,(IF($R$15="Yes",($BR$6*$R$13),0))) ->  | W40: 28 | X40: =X31 ->  | AC40: =IF($AH$24="YES",$AC$32,0) ->  | AD40: 0.8 | AE40: =IF($AH$24="YES",X40*AC40,X40*AD40) ->  | AH40: =IF(AH24="YES",0,1-AD40) -> 0 | AI40: =IF($AH$24="YES",X40*AG40,X40*AH40) ->  | AR40: Brown, Robert G | AS40: PL | AT40: Senior Pastor | AU40: 0.25 | AW40: Brackettville UMC | AX40: West District | AY40: 7040 | AZ40: Brackettville | BA40: No
B41: 29 | C41: Comprehensive Protection Plan (CPP) | O41: =IF($N$15="YES",Z41,0) -> 0 | R41: =IF($R$15="Yes",AA41,0) -> 0 | W41: 29 | X41: =IF(R27="YES",IF($R$24>$CM$6,$CM$6*$CN$6,IF(+$R$9=1,$R$24*$CN$6,0)),0) ->  | AC41: =IF($AH$24="YES",$AC$32,0) ->  | AD41: 0.85 | AE41: =IF($AH$24="YES",X41*AC41,X41*AD41) ->  | AH41: 0.15 | AI41: =IF($AH$24="YES",X41*AG41,X41*AH41) ->  | AR41: Bryant, James Lee | AS41: SY | AT41: Senior Pastor | AU41: 0.5 | AW41: Brady: First UMC | AX41: West District | AY41: 7050 | AZ41: Brady: First | BA41: No
B42: 30 | C42: Clergy Retirement Security Program (CRSP) defined benefit | O42: =IF($N$15="YES",Z42,0) -> 0 | R42: =IF($R$15="Yes",AA42,0) -> 0 | W42: 30 | X42: =IF($R$27="Yes",IF(+$R$9=1,$CN$7,0),0) ->  | AC42: =IF($AH$24="YES",$AC$32,0) ->  | AD42: 0.7 | AE42: =IF($AH$24="YES",X42*AC42,X42*AD42) ->  | AH42: 0.3 | AI42: =IF($AH$24="YES",X42*AG42,X42*AH42) ->  | AR42: Burke, Kimberly Anne Ladish | AS42: FE | AT42: Senior Pastor | AU42: 1 | AW42: Brownsville: El Buen Pastor | AX42: El Valle District | AY42: 4010 | AZ42: Brownsville: El Buen Pastor | BA42: Yes
B43: 31 | C43: Clergy Retirement Security Program (CRSP) defined contribution | O43: =IF($N$15="YES",Z43,0) -> 0 | R43: =IF($R$15="Yes",AA43,0) -> 0 | W43: 31 | X43: =IF($R$27="Yes",IF(+$R$9=1,$R$24*$CN$8,0),0) ->  | AC43: =IF($AH$24="YES",$AC$32,0) ->  | AD43: 0.8 | AE43: =IF($AH$24="YES",X43*AC43,X43*AD43) ->  | AH43: =1-AD43 -> 0.2 | AI43: =IF($AH$24="YES",X43*AG43,X43*AH43) ->  | AR43: Burkhalter, Estela Zuniga | AS43: FE | AT43: Assoc. Pastor | AU43: 1 | AW43: Brownsville: First | AX43: El Valle District | AY43: 4030 | AZ43: Brownsville: First | BA43: No
B44: 32 | C44: UMPIP Church Contribution (for Part Time Appointments) | O44: =IF($N$15="YES",Y42,0) -> 0 | R44: =IF($R$15="Yes",AA44,0) -> 0 | W44: 32 | X44: =IF(LEFT($R$8,1)="S",0,IF(LEFT($R$8,2)="OR",0,(IF(LEFT($R$8,1)="R",0,IF(+$R$9<1,$R$24*CN9,0))))) -> 0 | AC44: =IF($AH$24="YES",$AC$32,0) ->  | AD44: 0.8 | AE44: =IF($AH$24="YES",X44*AC44,X44*AD44) ->  | AH44: =1-AD44 -> 0.2 | AI44: =IF($AH$24="YES",X44*AG44,X44*AH44) ->  | AR44: Campen, Tanya Eustace | AS44: FD | AT44: Asst Director of Intergenerational Discipleship | AU44: 1 | AW44: Brownsville: Templo Emmanuel | AX44: El Valle District | AY44: 4020 | AZ44: Brownsville: Templo Emmanuel | BA44: Yes
B45: 33 | C45: Total RGC Legacy Contribution > | O45: =SUM(O40:Q44) ->  | R45: =SUM(R40:R44) ->  | W45: 33 | AR45: Cantrell, Mary June | AS45: RL | AT45: Senior Pastor | AU45: 0.5 | AW45: Buchanan Dam: Highland Lakes | AX45: Hill Country District | AY45: 5030 | AZ45: Buchanan Dam: Highland Lakes | BA45: No
B46: 34 | C46: Church's Total Compensation Expense (Excludes cost of Utilities) | W46: 34 | X46: =SUM(X35:X44) ->  | Z46: =SUM(Z35:Z45) ->  | AA46: =SUM(AA35:AA45) ->  | AE46: =SUM(AE35:AE44) ->  | AI46: =SUM(AI35:AI44) ->  | AR46: Cantu, Juan | AS46: FE | AT46: Senior Pastor | AU46: 1 | AW46: Buda UMC | AX46: Hill Country District | AY46: 5040 | AZ46: Buda | BA46: No
B47: 35 | C47: Church's Total Compensation Expense (Excludes cost of Utilities) LESS any RGC Legacy Contribution | W47: 35 | X47: =X46-(O45+R45) ->  | Z47: =Z46-O45 ->  | AA47: =AA46-R45 ->  | AR47: Cardona, Matthew | AS47: FE | AT47: Senior Pastor | AU47: 1 | AW47: Burnet UMC | AX47: Capital District | AY47: 1310 | AZ47: Burnet | BA47: No
AR48: Careaga, Gricelda B. | AS48: PE | AT48: Senior Pastor | AU48: 1 | AW48: Canyon Lake UMC | AX48: Hill Country District | AY48: 5050 | AZ48: Canyon Lake | BA48: No
B49: Part V Signatures | AR49: Careaga, Gricelda Garcia | AS49: FL | AT49: Senior Pastor | AU49: 1 | AW49: Canyon Lake: North Shore UMC | AX49: Hill Country District | AY49: 5330 | AZ49: North Shore | BA49: No
AR50: Carnesi, Tara | AS50: LY | AT50: Deaconess | AU50: 1 | AW50: Carrizo Springs | AX50: Hill Country District | AY50: 5060 | AZ50: Carrizo Springs | BA50: No
AR51: Carter, Aaron M. | AS51: FE | AT51: Senior Pastor | AU51: 1 | AW51: Castroville: Medina Valley UMC | AX51: Hill Country District | AY51: 5070 | AZ51: Castroville: Medina Valley | BA51: No
B52: Pastor's Signature | E52: Name: | F52: =O6 -> Select Pastor's Name | Z52: Date: | AR52: Carter, Melvin | AS52: PL | AT52: Senior Pastor | AU52: 0.5 | AW52: CC: Asbury | AX52: Coastal Bend District | AY52: 2110 | AZ52: CC: Asbury | BA52: No
O53: Signature ↑ | AR53: Casar, Maria Fernanda | AS53: FL | AT53: Senior Pastor | AU53: 1 | AW53: CC: El Buen Pastor | AX53: Coastal Bend District | AY53: 2120 | AZ53: CC: El Buen Pastor | BA53: Yes
B54: Local Church Representative Name & Office / Signature: | AR54: Cass, Theresa L | AS54: PL | AT54: Senior Pastor | AU54: 0.5 | AW54: CC: First UMC | AX54: Coastal Bend District | AY54: 2130 | AZ54: CC: First | BA54: No
AR55: Castles, Peter Van | AS55: FL | AT55: Senior Pastor | AU55: 1 | AW55: CC: Grace | AX55: Coastal Bend District | AY55: 2140 | AZ55: CC: Grace | BA55: No
D56: Curch Name: | E56: =N12 -> 0 | Z56: Date: | AR56: Chase, Sylvester E. | AS56: FE | AT56: Senior Pastor | AU56: 1 | AW56: CC: Island in the Son | AX56: Coastal Bend District | AY56: 2150 | AZ56: CC: Island in the Son | BA56: No
I57: Printed Name of Signer↑ | O57: Signature ↑ | V57: Select Office this person holds | AR57: Clark, Robert Lee | AS57: RM | AT57: Assoc. Pastor | AU57: 1 | AW57: CC: Kelsey Memorial | AX57: Coastal Bend District | AY57: 2160 | AZ57: CC: Kelsey Memorial | BA57: Yes
AR58: Clifton, Sheri Stice | AS58: FE | AT58: Senior Pastor | AU58: 1 | AW58: CC: St. John's | AX58: Coastal Bend District | AY58: 2170 | AZ58: CC: St. John's | BA58: No
D59: Curch Name: | E59: =R12 -> 0 | Z59: Date: | AR59: Cline, Mary E. | AS59: FL | AT59: Senior Pastor | AU59: 1 | AW59: CC: St. Paul | AX59: Coastal Bend District | AY59: 2190 | AZ59: CC: St. Paul | BA59: No
I60: Printed Name of Signer↑ | O60: Signature ↑ | V60: Select Office this person holds | AR60: Cochran, Jack Kai | AS60: FL | AT60: Senior Pastor | AU60: 1 | AW60: CC: St. Peter's by the Sea/CC District | AX60: Coastal Bend District | AY60: 2200 | AZ60: CC: St. Peter's By The Sea | BA60: No
AR61: Cochran, John Thomas | AS61: FL | AT61: Senior Pastor | AU61: 1 | AW61: CC: Wesley | AX61: Coastal Bend District | AY61: 2210 | AZ61: CC: Wesley | BA61: No
B62: District Superintendent's Signature | Z62: Date: | AR62: Collett, David Melville | AS62: FD | AT62: Senior Pastor | AU62: 1 | AW62: Cedar Creek UMC | AX62: Crossroads District | AY62: 3050 | AZ62: Cedar Creek | BA62: No
A63: NOTES: | G63: Printed Name ↑ | O63: Signature ↑ | AR63: Collins, Roy D. | AS63: PL | AT63: Senior Pastor | AU63: 0.25 | AW63: Cedar Park: First | AX63: Capital District | AY63: 1320 | AZ63: Cedar Park: First | BA63: No
A64: 1. | B64: For calendar year 2024, pastors will have the opportunity to select from several different plans for health coverage. These selections will be made in Nov 2023 during the Annual Election Period. The church's clergy HealthFlex Premium Credit Responsibility for Full-Time Appointment is $11,904. If the "Pastor Only" plan combination is more than $11,904, the pastor will need to fund any excess premium through a pre-tax deduction from salary (Line 10). The church may elect to fund an optional "Church Contribution" for all or a portion of Family Dependent Health Coverage (Line 20). Any excess premium for dependent coverage not funded by the church will be funded through a pre-tax premium deduction from salary (Line 10). | AR64: Conkelton, Kelly | AS64: PL | AT64: Assoc. Pastor | AU64: 0.25 | AW64: Cherokee | AX64: Hill Country District | AY64: 5090 | AZ64: Cherokee | BA64: No
AR65: Cooper, John Robert | AS65: FE | AT65: Senior Pastor | AU65: 1 | AW65: Columbus: First | AX65: Crossroads District | AY65: 3060 | AZ65: Columbus: First | BA65: No
AR66: Cottingham, Stephen Kent | AS66: FE | AT66: Senior Pastor | AU66: 1 | AW66: Columbus: St. Paul | AX66: Crossroads District | AY66: 3070 | AZ66: Columbus: St. Paul | BA66: No
AR67: Cruz, Sonia | AS67: LY | AT67: Deaconess | AU67: 1 | AW67: Comfort: Gaddis Memorial | AX67: Hill Country District | AY67: 5100 | AZ67: Comfort: Gaddis Memorial | BA67: No
A68: 2. | B68: The pastor may elect to have salary withheld to participate in other benefit plans offered through the Rio Texas Conference. These include a pretax "Flex Plan" (DCR, HSA, MRA plans), retirement 403b plan UMPIP, and an optional life insurance plan. | AR68: Cuellar Valenzuela, Ashley | AS68: PL | AT68: Senior Pastor | AU68: 0.5 | AW68: Cross Tracks Church | AX68: Capital District | AY68: 1400 | AZ68: Cross Tracks Church | BA68: No
AR69: Dabale, Sadique | AS69: FL | AT69: Senior Pastor | AU69: 1 | AW69: Crystal City: Swindall Memorial | AX69: Hill Country District | AY69: 5120 | AZ69: Crystal City: Swindall Memorial | BA69: Yes
AR70: Davis, Curtis Jeffrey | AS70: PE | AT70: Senior Pastor | AU70: 1 | AW70: Cuero/Rabke | AX70: Crossroads District | AY70: 3080 | AZ70: Cuero: First | BA70: No | BB70: Rabke | BC70: No
A71: 3 | B71: The Pastor must provide copies to the Church Treasurer on any enrollment form/s or online benefit elections and the church should verify each monthly invoice to determine that the payroll is correctly handled. | AR71: Deviney, Forrest Macon | AS71: FE | AT71: Senior Pastor | AU71: 1 | AW71: Del Rio: El Principe de Paz | AX71: West District | AY71: 7110 | AZ71: Del Rio: Principe de Paz | BA71: Yes
B72: Color Code Key > | F72: Church Enters Data | K72: Calculated Data Entered Automatically | S72: Instructions | X72: Headings | AR72: Deviney, Thomas Forrest | AS72: FE | AT72: Senior Pastor | AU72: 1 | AW72: Del Rio: First UMC | AX72: West District | AY72: 7100 | AZ72: Del Rio: First | BA72: No
AR73: Dillon, David Wayne | AS73: PL | AT73: Senior Pastor | AU73: 0.75 | AW73: Devine UMC | AX73: Las Misiones District | AY73: 6040 | AZ73: Devine: First | BA73: No
AR74: Dobbs, Michael Rea | AS74: RE | AT74: Senior Pastor | AU74: 1 | AW74: Dewville/Guadalupe Regional Hospice Services | AX74: Crossroads District | AY74: 3100 | AZ74: Dewville | BA74: No
AR75: Dorantes, Laura | AS75: FL | AT75: Senior Pastor | AU75: 1 | AW75: Dilley:Bethania | AX75: Las Misiones District | AY75: 6060 | AZ75: Dilley: Bethania | BA75: Yes
AR76: Duke, Kelly Squyres | AS76: FD | AT76: Assoc. Pastor | AU76: 1 | AW76: Donna: Principe de Paz/Alamo:San Pablo | AX76: El Valle District | AY76: 4050 | AZ76: Donna: Principe de Paz | BA76: Yes | BB76: Alamo:San Pablo | BC76: Yes
AR77: Dyke, Barbara Fruin | AS77: FE | AT77: Senior Pastor | AU77: 1 | AW77: Dripping Springs | AX77: Capital District | AY77: 1350 | AZ77: Dripping Springs | BA77: No
AR78: Dykehouse, Pamela Lynn | AS78: FE | AT78: Senior Pastor | AU78: 1 | AW78: Eagle Lake / Garwood: Lehrer Memorial | AX78: Crossroads District | AY78: 3110 | AZ78: Eagle Lake | BA78: No | BB78: Garwood: Lehrer Memorial | BC78: No
AR79: Edgar, David Ellsworth | AS79: FE | AT79: Senior Pastor | AU79: 0.5 | AW79: Eagle Pass: FUMC/Mission Border Hope | AX79: Hill Country District | AY79: 5130 | AZ79: Eagle Pass | BA79: No | BB79: Mission Border Hope | BC79: No
AR80: Edmiston, Elizabeth Miller | AS80: PL | AT80: Senior Pastor | AU80: 0.25 | AW80: Edcouch | AX80: El Valle District | AY80: 4060 | AZ80: Edcouch: First | BA80: No
AR81: Engstrom, Cynthia Grilk | AS81: FE | AT81: Senior Pastor | AU81: 1 | AW81: Edinburg: El Buen Pastor | AX81: El Valle District | AY81: 4070 | AZ81: Edinburg: El Buen Pastor | BA81: Yes
AR82: Esparza, Chansin | AS82: PL | AT82: Assoc. Pastor | AU82: 0.75 | AW82: Edinburg: First UMC | AX82: El Valle District | AY82: 4080 | AZ82: Edinburg: First | BA82: No
AR83: Estus, Christopher Austin | AS83: PL | AT83: Assoc. Pastor | AU83: 0.25 | AW83: Edna: First UMC | AX83: Crossroads District | AY83: 3120 | AZ83: Edna: First | BA83: No
AR84: Evans, Destini | AS84: PL | AT84: Senior Pastor | AU84: 0.5 | AW84: Edna: Scruggs | AX84: Crossroads District | AY84: 3130 | AZ84: Edna: Scruggs Chapel | BA84: No
AR85: Evans, Stacey Bratton | AS85: PL | AT85: Senior Pastor | AU85: 0.25 | AW85: Eldorado: First / Christoval | AX85: West District | AY85: 7120 | AZ85: Eldorado: First | BA85: No | BB85: Christoval | BC85: No
AR86: Feagins, John Patrick | AS86: FE | AT86: Senior Pastor | AU86: 1 | AW86: Elgin | AX86: Crossroads District | AY86: 3170 | AZ86: Elgin | BA86: No
AR87: Feagins, Raquel Cajiri | AS87: FE | AT87: Assoc. Pastor | AU87: 1 | AW87: Elgin: Bethel | AX87: Crossroads District | AY87: 3180 | AZ87: Elgin: Bethel | BA87: Yes
AR88: Felps, David Ray | AS88: FE | AT88: Senior Pastor | AU88: 1 | AW88: Elsa | AX88: El Valle District | AY88: 4090 | AZ88: Elsa: First | BA88: Yes
AR89: Fischer, Jodi | AS89: SY | AT89: Senior Pastor | AU89: 0.25 | AW89: Fentress | AX89: Crossroads District | AY89: 3200 | AZ89: Fentress | BA89: No
AR90: Fletcher, John Vincent | AS90: FE | AT90: Senior Pastor | AU90: 1 | AW90: Floresville UMC | AX90: Las Misiones District | AY90: 6070 | AZ90: Floresville | BA90: No
AR91: Fletcher, Mae Elizabeth | AS91: RL | AT91: Senior Pastor | AU91: 0.5 | AW91: Floresville: El Mesias | AX91: Las Misiones District | AY91: 6080 | AZ91: Floresville: El Mesias | BA91: Yes
AR92: Franklin, Jesse Andree | AS92: FL | AT92: Senior Pastor | AU92: 1 | AW92: Fredericksburg UMC | AX92: Hill Country District | AY92: 5150 | AZ92: Fredericksburg | BA92: No
AR93: Freeman, Jacqueline | AS93: PE | AT93: Senior Pastor | AU93: 1 | AW93: Freer/Bruni | AX93: Coastal Bend District | AY93: 2250 | AZ93: Freer | BA93: No | BB93: Bruni | BC93: No
AR94: Freeman, Marcus Antonio Lucas | AS94: FE | AT94: District Superintendent | AU94: 0.5 | AW94: Ganado/Louise | AX94: Crossroads District | AY94: 3230 | AZ94: Ganado: First | BA94: No | BB94: Louise | BC94: No
AR95: Fuerst, Taylor | AS95: FE | AT95: Senior Pastor | AU95: 1 | AW95: George West UMC | AX95: Coastal Bend District | AY95: 2260 | AZ95: George West | BA95: No
AR96: Fulton, Kathleen | AS96: PL | AT96: Senior Pastor | AU96: 0.25 | AW96: Goliad: Fannin St. | AX96: Coastal Bend District | AY96: 2270 | AZ96: Goliad: Fannin St. | BA96: No
AR97: Garcia, Octaviano Zapata | AS97: PL | AT97: Assoc. Pastor | AU97: 0.5 | AW97: Gonzales: Evans Chapel/Henson Chapel | AX97: Crossroads District | AY97: 3190 | AZ97: Evan's Chapel | BA97: No | BB97: Henson Chapel | BC97: No
AR98: Garza, Abdon | AS98: FL | AT98: Assoc. Pastor | AU98: 1 | AW98: Granite Shoals: Grace UMC | AX98: Hill Country District | AY98: 5160 | AZ98: Granite Shoals: Grace UMC | BA98: No
AR99: Gause, Jack Chavis | AS99: FE | AT99: Senior Pastor | AU99: 1 | AW99: Gruene UMC | AX99: Hill Country District | AY99: 5165 | AZ99: Gruene UMC | BA99: No
AR100: Gideon, Kate | AS100: PL | AT100: Senior Pastor | AU100: 0.25 | AW100: Hallettsville / Mossy Grove | AX100: Crossroads District | AY100: 3280 | AZ100: Hallettsville: First | BA100: No | BB100: Mossy Grove | BC100: No
AR101: Glenn, Robert Edward | AS101: RA | AT101: Senior Pastor | AU101: 1 | AW101: Hallettsville Circuit | AX101: Crossroads District | AY101: 3560 | AZ101: Richardson-Brown Chapel | BA101: No | BB101: Shiner: Johnson's Chapel | BC101: No
AR102: Glover, Edward E. | AS102: SY | AT102: Senior Pastor | AU102: 0.5 | AW102: Harlingen: El Buen Samaritano | AX102: El Valle District | AY102: 4100 | AZ102: Harlingen: El Buen Samaritano | BA102: Yes
AR103: Gonzales, Albert | AS103: PL | AT103: Senior Pastor | AU103: 0.5 | AW103: Harlingen: First UMC | AX103: El Valle District | AY103: 4110 | AZ103: Harlingen: First | BA103: No
AR104: Gonzales, Leslie | AS104: OF | AW104: Harlingen: Valley Praise | AX104: El Valle District | AY104: 4120 | AZ104: Harlingen: Valley Praise | BA104: No
AR105: Gonzalez, Aaron A. | AS105: FE | AT105: Chaplain | AU105: 1 | AW105: Harlingen: Wesley UMC | AX105: El Valle District | AY105: 4130 | AZ105: Harlingen: Wesley | BA105: No
AR106: Gonzalez, Stan | AS106: PL | AT106: Senior Pastor | AU106: 0.75 | AW106: Harper UMC | AX106: Hill Country District | AY106: 5170 | AZ106: Harper | BA106: No
AR107: Goodman, Roberta Blackerby | AS107: FE | AT107: Senior Pastor | AU107: 1 | AW107: Harwood / Prairie Lea | AX107: Crossroads District | AY107: 3290 | AZ107: Harwood | BA107: No | BB107: Prairie Lea | BC107: No
AR108: Gotelli, Holly Hatch | AS108: FE | AT108: Senior Pastor | AU108: 1 | AW108: Haynie Chapel | AX108: Crossroads District | AY108: 3300 | AZ108: Haynie Chapel | BA108: No
AR109: Graham, Bethany Sue | AS109: FD | AT109: Transitional Leave | AU109: 1 | AW109: Helotes Hills UMC | AX109: Las Misiones District | AY109: 6090 | AZ109: Helotes Hills | BA109: No
AR110: Green, Kallie Ellen | AS110: FE | AT110: Senior Pastor | AU110: 1 | AW110: Hilda | AX110: West District | AY110: 7140 | AZ110: Hilda | BA110: No
AR111: Guzman, Alvaro | AS111: RE | AT111: Senior Pastor | AU111: 0.5 | AW111: Hope Arise | AX111: Las Misiones District | AY111: 6015 | AZ111: Hope Arise | BA111: No
AR112: Hackett, Gregory Allan | AS112: RM | AW112: Hunt UMC | AX112: Hill Country District | AY112: 5190 | AZ112: Hunt | BA112: No
AR113: Halfacre, Celia Eileen | AS113: FE | AT113: Senior Pastor | AU113: 1 | AW113: Industry: Cherry Chapel | AX113: Crossroads District | AY113: 3350 | AZ113: Industry: Cherry Chapel | BA113: No
AR114: Hamann, Rebecca D. | AS114: OD | AT114: Assoc. Pastor | AU114: 0.75 | AW114: Ingleside UMC | AX114: Coastal Bend District | AY114: 2300 | AZ114: Ingleside | BA114: No
AR115: Han, Daesub | AS115: FE | AT115: Assoc. Pastor | AU115: 1 | AW115: Iraan | AX115: West District | AY115: 7150 | AZ115: Iraan UMC | BA115: No
AR116: Harrington, Daniel Richard | AS116: FE | AT116: Senior Pastor | AU116: 1 | AW116: Johnson City UMC | AX116: Hill Country District | AY116: 5200 | AZ116: Johnson City: First | BA116: No
AR117: Harris, Paul Ellis | AS117: FE | AT117: Senior Pastor | AU117: 1 | AW117: Karnes City | AX117: Coastal Bend District | AY117: 2310 | AZ117: Karnes City: UMC | BA117: No
AR118: Harris, William Monroe | AS118: FE | AT118: Senior Pastor | AU118: 1 | AW118: Kempner UMC | AX118: Capital District | AY118: 1370 | AZ118: Kempner | BA118: No
AR119: Hathaway, John | AS119: PD | AT119: Assoc. Pastor | AU119: 0.25 | AW119: Kerrville: Barnett Chapel | AX119: Hill Country District | AY119: 5210 | AZ119: Kerrville: Barnett Chapel | BA119: No
AR120: Hayes, Terrence Kenyon | AS120: RA | AT120: Senior Pastor | AU120: 0.5 | AW120: Kerrville: First UMC | AX120: Hill Country District | AY120: 5220 | AZ120: Kerrville: First | BA120: No
AR121: Healy, Laura | AS121: PL | AT121: Assoc. Pastor | AU121: 0.75 | AW121: Kerrville: St. Paul's UMC | AX121: Hill Country District | AY121: 5230 | AZ121: Kerrville: St. Paul's | BA121: No
AR122: Heikes, Laura Jane | AS122: FE | AT122: Senior Pastor | AU122: 1 | AW122: Kingsville: El Buen Pastor | AX122: Coastal Bend District | AY122: 2340 | AZ122: Kingsville: El Buen Pastor | BA122: Yes
AR123: Henneke, Glenn | AS123: SY | AT123: Senior Pastor | AU123: 0.25 | AW123: Kingsville: First UMC | AX123: Coastal Bend District | AY123: 2350 | AZ123: Kingsville: First | BA123: No
AR124: Henry, Reese Alexandra | AS124: FE | AT124: Senior Pastor | AU124: 0.75 | AW124: Kyle UMC | AX124: Hill Country District | AY124: 5240 | AZ124: Kyle | BA124: No
AR125: Herrera, Abigail Parker | AS125: FD | AT125: Assoc. Pastor | AU125: 1 | AW125: La Feria UMC | AX125: El Valle District | AY125: 4140 | AZ125: La Feria | BA125: No
AR126: Herrin, Jon | AS126: FE | AT126: Assoc. Pastor | AU126: 1 | AW126: La Feria: Dios es Amor | AX126: El Valle District | AY126: 4150 | AZ126: La Feria: Dios Es Amor | BA126: Yes
AR127: Hewell, Audrey Ann | AS127: RA | AT127: Senior Pastor | AU127: 0.75 | AW127: La Grange: First UMC | AX127: Crossroads District | AY127: 3370 | AZ127: La Grange: First | BA127: No
AR128: Higginbotham, Phillip | AS128: FL | AT128: Senior Pastor | AU128: 1 | AW128: La Vernia | AX128: Las Misiones District | AY128: 6110 | AZ128: La Vernia | BA128: No
AR129: Highland, Patricia S. | AS129: FL | AT129: Assoc. Pastor | AU129: 1 | AW129: LaGrange: St. James | AX129: Crossroads District | AY129: 3380 | AZ129: La Grange: St. James | BA129: No
AR130: Hinkebein, John Christopher | AS130: FD | AT130: Senior Pastor | AU130: 1 | AW130: Lakehills UMC | AX130: Hill Country District | AY130: 5250 | AZ130: Lakehills | BA130: No
AR131: Horan, Karen Lynn | AS131: FE | AT131: Executive Director | AU131: 0.5 | AW131: Lampasas UMC | AX131: Capital District | AY131: 1380 | AZ131: Lampasas | BA131: No
AR132: Hornung, Warren George | AS132: RE | AT132: Senior Pastor | AU132: 1 | AW132: Laredo: First UMC | AX132: Las Misiones District | AY132: 6130 | AZ132: Laredo: First | BA132: No
AR133: Hunter, Jacob Earle | AS133: FL | AT133: Senior Pastor | AU133: 1 | AW133: Laredo: La Trinidad | AX133: Las Misiones District | AY133: 6140 | AZ133: Laredo: La Trinidad | BA133: Yes
AR134: Jackson, Caroline Jeanet | AS134: PL | AT134: Supply Pastor | AU134: 0.75 | AW134: Leakey | AX134: Hill Country District | AY134: 5260 | AZ134: Leakey | BA134: No
AR135: Jackson, Cynthia J. | AS135: FL | AT135: Senior Pastor | AU135: 1 | AW135: Leander UMC | AX135: Capital District | AY135: 1390 | AZ135: Leander | BA135: No
AR136: Jackson, Patrick Eugene | AS136: FL | AT136: Senior Pastor | AU136: 1 | AW136: Llano: Lutie Watkins UMC | AX136: Hill Country District | AY136: 5270 | AZ136: Llano: Lutie Watkins | BA136: No
AR137: Jacobson, Ryan Douglas | AS137: FL | AT137: Assoc. Pastor | AU137: 1 | AW137: Lockhart: First UMC | AX137: Crossroads District | AY137: 3390 | AZ137: Lockhart: First | BA137: No
AR138: Jara, Juan Ortiz | AS138: RL | AT138: Senior Pastor | AU138: 0.25 | AW138: Lockhart: St. Mark / Dale: Corinth | AX138: Crossroads District | AY138: 3090 | AZ138: Dale: Corinth | BA138: No | BB138: Lockhart: St. Mark | BC138: No
AR139: Jara, Nydia Irizarry | AS139: RE | AT139: Assoc. Pastor | AU139: 0.25 | AW139: Lometa/Bend | AX139: Capital District | AY139: 1410 | AZ139: Lometa | BA139: No | BB139: Bend | BC139: No
AR140: Jenson, Gary Ryan | AS140: FE | AT140: Assoc. Pastor | AU140: 1 | AW140: Luling: First UMC | AX140: Crossroads District | AY140: 3420 | AZ140: Luling: First | BA140: No
AR141: Jenson, Melissa Suzanne Allen | AS141: FE | AT141: Assoc. Pastor | AU141: 1 | AW141: Luling: Wm Taylor UMC | AX141: Crossroads District | AY141: 3430 | AZ141: Luling: Wm Taylor | BA141: No
AR142: Ji, Yanjie | AS142: PL | AT142: Senior Pastor | AU142: 0.5 | AW142: Lyford | AX142: El Valle District | AY142: 4170 | AZ142: Lyford | BA142: No
AR143: Jimenez, Cecilio | AS143: SY | AT143: TBS | AU143: 0.25 | AW143: Manchaca UMC | AX143: Capital District | AY143: 1420 | AZ143: Manchaca | BA143: No
AR144: Jimenez, Rumaldo | AS144: PL | AT144: Senior Pastor | AU144: 0.5 | AW144: Manor UMC | AX144: Crossroads District | AY144: 3450 | AZ144: Manor | BA144: No
AR145: Johnson, Cynthia Andrade | AS145: LY | AT145: Deaconess | AU145: 1 | AW145: Mason: First UMC | AX145: West District | AY145: 7180 | AZ145: Mason: First | BA145: No
AR146: Johnson, LyAnna M | AS146: OE | AT146: Senior Pastor | AU146: 1 | AW146: MC: El Divino Redentor | AX146: El Valle District | AY146: 4180 | AZ146: McAllen: El Divino Redentor | BA146: Yes
AR147: Johnson, Thomas Adamson | AS147: FE | AT147: Assoc. Pastor | AU147: 1 | AW147: MC: First UMC | AX147: El Valle District | AY147: 4190 | AZ147: McAllen: First | BA147: No
AR148: Jones, Kathleen | AS148: PL | AT148: Senior Pastor | AU148: 0.5 | AW148: MC: St. Mark UMC | AX148: El Valle District | AY148: 4200 | AZ148: McAllen: St. Mark | BA148: No
AR149: Jones, Todd McNeil | AS149: FL | AT149: Senior Pastor | AU149: 1 | AW149: Melvin | AX149: West District | AY149: 7200 | AZ149: Melvin | BA149: No
AR150: Kelley, Jennifer Denyse | AS150: PE | AW150: Mercedes: First | AX150: El Valle District | AY150: 4230 | AZ150: Mercedes: First | BA150: No
AR151: Kepler-Karrer, Cynthia Anne | AS151: FE | AT151: Senior Pastor | AU151: 1 | AW151: Mertzon | AX151: West District | AY151: 7220 | AZ151: Mertzon | BA151: No
AR152: Kim, Earl | AS152: OE | AT152: Assoc. Pastor | AU152: 1 | AW152: Mission: El Mesias | AX152: El Valle District | AY152: 4240 | AZ152: Mission: El Mesias | BA152: Yes
AR153: King, Brad | AS153: FL | AT153: Assoc. Pastor | AU153: 1 | AW153: Mission: First UMC | AX153: El Valle District | AY153: 4250 | AZ153: Mission: First | BA153: No
AR154: Kitchens, James | AS154: SY | AT154: Lay Pastor (PT) | AU154: 0.25 | AW154: New Braunfels: First UMC | AX154: Hill Country District | AY154: 5310 | AZ154: New Braunfels: First | BA154: No
AR155: Knapp, Adam Ray | AS155: FE | AT155: Co-Pastor | AU155: 1 | AW155: Nixon: Harris Chapel | AX155: Crossroads District | AY155: 3160 | AZ155: Nixon: Harris Chapel | BA155: No
AR156: Knapp, Danielle Elizabeth | AS156: FE | AT156: Co-Pastor | AU156: 1 | AW156: Nuevo Pacto | AX156: Las Misiones District | AY156: 6355 | AZ156: Nuevo Pacto | BA156: Yes
AR157: Knappage, Amy Canterbury | AS157: FL | AT157: Senior Pastor | AU157: 1 | AW157: Odem: First UMC | AX157: Coastal Bend District | AY157: 2380 | AZ157: Odem: First | BA157: No
AR158: Knighten, Randolph | AS158: PD | AT158: Assoc. Pastor | AU158: 1 | AW158: Ozona UMC | AX158: West District | AY158: 7250 | AZ158: Ozona | BA158: No
AR159: Kretzler, Joanne Lois | AS159: FD | AT159: Transitional Leave | AU159: 1 | AW159: Paint Rock | AX159: West District | AY159: 7260 | AZ159: Paint Rock | BA159: No
AR160: Kwiatkowski, Laurinda | AS160: FL | AT160: Senior Pastor | AU160: 1 | AW160: Palacios UMC | AX160: Coastal Bend District | AY160: 2390 | AZ160: Palacios | BA160: No
AR161: Larson, Janet Kay | AS161: FE | AT161: Senior Pastor | AU161: 1 | AW161: Pearsall:San Pablo | AX161: Las Misiones District | AY161: 6180 | AZ161: Pearsall: San Pablo | BA161: Yes
AR162: Latimer, Rachel | AS162: PD | AT162: Assoc. Pastor | AU162: 1 | AW162: Pflugerville UMC | AX162: Capital District | AY162: 1440 | AZ162: Pflugerville | BA162: No
AR163: Leggett, Richard Lee | AS163: FE | AT163: Senior Pastor | AU163: 1 | AW163: Pharr: La Trinidad | AX163: El Valle District | AY163: 4270 | AZ163: Pharr: La Trinidad | BA163: Yes
AR164: LeVine, Kathryn Vanessa | AS164: AM | AT164: Chaplain | AU164: 1 | AW164: Pharr: Nueva Vida | AX164: El Valle District | AY164: 4280 | AZ164: Pharr: Nueva Vida | BA164: Yes
AR165: Leyva, Javier | AS165: RA | AT165: Senior Pastor | AU165: 1 | AW165: Point Comfort / Lolita | AX165: Coastal Bend District | AY165: 2420 | AZ165: Point Comfort | BA165: No | BB165: Lolita | BC165: No
AR166: Lind, Melissa | AS166: FL | AT166: Senior Pastor | AU166: 1 | AW166: Port Arthur: Getsemani | AX166: Crossroads District | AY166: 3530 | AZ166: Port Arthur: Getsemani | BA166: Yes
AR167: Lirette, Jacqui Elizabeth | AS167: FL | AT167: Assoc. Pastor | AU167: 1 | AW167: Port Isabel: First UMC | AX167: El Valle District | AY167: 4290 | AZ167: Port Isabel: First UMC | BA167: No
AR168: Lizcano, Rene | AS168: SY | AT168: Supply Pastor | AU168: 0.25 | AW168: Port Lavaca: First | AX168: Coastal Bend District | AY168: 2430 | AZ168: Port Lavaca: First | BA168: No
AR169: Lloyd, Leigh Livingston | AS169: FE | AT169: Senior Pastor | AU169: 1 | AW169: Portland: First UMC | AX169: Coastal Bend District | AY169: 2440 | AZ169: Portland: First | BA169: No
AR170: Logan, Cody Alan | AS170: FL | AT170: Senior Pastor | AU170: 1 | AW170: Poteet | AX170: Las Misiones District | AY170: 6200 | AZ170: Poteet | BA170: No
AR171: Lopez, Robert M | AS171: FE | AT171: Assistant to the Episcopal Office | AU171: 1 | AW171: Rankin | AX171: West District | AY171: 7270 | AZ171: Rankin | BA171: No
AR172: Lott, Michele Marie | AS172: FE | AT172: Senior Pastor | AU172: 1 | AW172: Raymondville:First | AX172: El Valle District | AY172: 4310 | AZ172: Raymondville: First | BA172: No
AR173: Luhrs, Glenn Arthur | AS173: FE | AT173: Senior Pastor | AU173: 1 | AW173: Refugio UMC | AX173: Coastal Bend District | AY173: 2460 | AZ173: Refugio | BA173: No
AR174: Lumpkin, George Enos | AS174: FE | AT174: Senior Pastor | AU174: 1 | AW174: Rio Grande City: First | AX174: El Valle District | AY174: 4320 | AZ174: Rio Grande City: First | BA174: Yes
AR175: Machado, Victor Ramirez | AS175: SY | AT175: Senior Pastor | AU175: 0.25 | AW175: Rockport: First UMC | AX175: Coastal Bend District | AY175: 2490 | AZ175: Rockport: First | BA175: No
AR176: Marceau, Linda Proctor | AS176: FD | AT176: Assoc. Pastor | AU176: 0.75 | AW176: Rocksprings: FUMC/Barksdale | AX176: West District | BA176: No
AR177: Marchbanks, Hilary | AS177: FE | AT177: Senior Pastor | AU177: 1 | AW177: Rocksprings: FUMC/Barksdale | AX177: West District | AY177: 7290 | AZ177: Rocksprings: First | BA177: No | BB177: Barksdale | BC177: No
AR178: Marks, Robert | AS178: OF | AW178: Rolling Hills Community | AX178: Capital District | AY178: 1450 | AZ178: Rolling Hills Community | BA178: No
AR179: Martin, Gary William | AS179: RL | AT179: Senior Pastor | AU179: 0.5 | AW179: San Benito | AX179: El Valle District | AY179: 4340 | AZ179: San Benito: First | BA179: No
AR180: Martin, Ruth Aquellis | AS180: OE | AT180: Senior Pastor | AU180: 0.5 | AW180: San Juan: Los Wesleyanos | AX180: El Valle District | AY180: 4360 | AZ180: San Juan: Los Wesleyanos | BA180: Yes
AR181: Martin, Sidney Ray | AS181: PL | AT181: Senior Pastor | AU181: 0.5 | AW181: San Marcos: El Buen Pastor | AX181: Hill Country District | AY181: 5350 | AZ181: San Marcos: El Buen Pastor | BA181: Yes
AR182: Martinez, Erick | AS182: SY | AT182: Supply Pastor | AU182: 0.25 | AW182: San Marcos: First UMC | AX182: Hill Country District | AY182: 5360 | AZ182: San Marcos: First | BA182: No
AR183: Martinez, Jose Rene | AS183: SY | AT183: Senior Pastor | AU183: 0.25 | AW183: San Marcos: Jackson Chapel | AX183: Hill Country District | AY183: 5370 | AZ183: San Marcos: Jackson Chapel | BA183: No
AR184: Matthews, Neal | AS184: RE | AT184: Senior Pastor | AU184: 0.5 | AW184: San Saba UMC | AX184: West District | AY184: 7300 | AZ184: San Saba | BA184: No
AR185: Mathis, Germaine Tropez | AS185: RE | AT185: Assoc. Pastor | AU185: 0.5 | AW185: SAng: Bethel | AX185: West District | AY185: 7310 | AZ185: SAng: Bethel | BA185: Yes
AR186: Mays, Robert | AS186: SY | AT186: TBS | AU186: 0.5 | AW186: SAng: Grape Creek UMC | AX186: West District | AY186: 76901 | AZ186: SAng: Grape Creek | BA186: No
AR187: McAvoy, Glen Don | AS187: FD | AT187: Minister of Music | AU187: 1 | AW187: SAng: Sierra Vista UMC | AX187: West District | AY187: 7350 | AZ187: SAng: Sierra Vista | BA187: No
AR188: McCorkle, Catherine Otto | AS188: FL | AT188: Senior Pastor | AU188: 1 | AW188: SAng: St. Luke | AX188: West District | AY188: 7360 | AZ188: SAng: St. Luke | BA188: No
AR189: McNitzky, Richard Reed | AS189: FE | AT189: Assoc. Pastor | AU189: 1 | AW189: SAng: Wesley Trinity | AX189: West District | AY189: 7370 | AZ189: SAng: Wesley Trinity | BA189: No
AR190: Melton, John Scott | AS190: SY | AT190: Supply Pastor | AU190: 0.25 | AW190: SAnt: Alamo | AX190: Las Misiones District | AY190: 6210 | AZ190: SAnt: Alamo | BA190: No
AR191: Melton, Patrick J. | AS191: PE | AT191: Senior Pastor | AU191: 1 | AW191: Sant: Alamo Heights | AX191: Las Misiones District | AY191: 6220 | AZ191: SAnt: Alamo Heights | BA191: No
AR192: Melville, David | AS192: OE | AT192: Senior Pastor | AU192: 0.5 | AW192: SAnt: Bethany | AX192: Las Misiones District | AY192: 6240 | AZ192: SAnt: Bethany | BA192: No
AR193: Mertz, Austin William | AS193: FL | AT193: Assoc. Pastor | AU193: 1 | AW193: SAnt: Bethel UMC | AX193: Las Misiones District | AY193: 6250 | AZ193: SAnt: Bethel | BA193: No
AR194: Milan, Aaron | AS194: SY | AT194: Supply Pastor | AU194: 0.25 | AW194: SAnt: Chapel Hill UMC | AX194: Las Misiones District | AY194: 6270 | AZ194: SAnt: Chapel Hill | BA194: No
AR195: Miller, Russell Thomas | AS195: FD | AT195: Senior Pastor | AU195: 1 | AW195: SAnt: Chinese UMC | AX195: Las Misiones District | AY195: 6280 | AZ195: SAnt: Chinese UMC | BA195: No
AR196: Morriss, Jason Ashley | AS196: FL | AT196: Senior Pastor | AU196: 1 | AW196: SAnt: Christ Fellowship | AX196: Las Misiones District | AY196: 6290 | AZ196: SAnt: Christ Fellowship | BA196: No
AR197: Mumme, Michael Christopher | AS197: FE | AT197: Senior Pastor | AU197: 1 | AW197: SAnt: Colonial Hills UMC | AX197: Las Misiones District | AY197: 6310 | AZ197: SAnt: Colonial Hills | BA197: No
AR198: Nagle, Josh | AS198: PL | AT198: Assoc. Pastor | AU198: 0.25 | AW198: SAnt: East St. Paul | AX198: Las Misiones District | AY198: 6320 | AZ198: SAnt: East St. Paul | BA198: No
AR199: Nelson, Melissa Lee Smith | AS199: RE | AT199: Senior Pastor | AU199: 0.5 | AW199: SAnt: Emanuel | AX199: Las Misiones District | AY199: 6360 | AZ199: Sant: Emanuel | BA199: Yes
AR200: Noah, Allen | AS200: RA | AT200: Senior Pastor | AU200: 0.5 | AW200: Sant: Epworth | AX200: Las Misiones District | AY200: 6370 | AZ200: Sant: Epworth | BA200: No
... 102 more rows

Sheet 2024 HealthFlex Rates
